bitfinex/quotes_BTCUSD_20250604
["timestamp","ask_amount","ask_price","bid_price","bid_amount"]
[1749036792228,1.52621829,105350.0,105340.0,0.4034]
[1749036792668,1.50855793,105350.0,105340.0,0.4034]
[1749036793771,1.54387865,105350.0,105340.0,0.4034]
[1749036793995,1.56153901,105350.0,105340.0,0.4034]
[1749036794237,1.54387865,105350.0,105340.0,0.4034]
[1749036794681,1.62950761,105350.0,105340.0,0.24692]
[1749036794891,1.62950761,105350.0,105340.0,0.4034]
[1749036795114,1.64716801,105350.0,105340.0,0.4034]
[1749036795333,1.54387865,105350.0,105340.0,0.4034]
[1749036796858,1.56154531,105350.0,105340.0,0.4034]
[1749036797073,1.54387865,105350.0,105340.0,0.4034]
[1749036797298,1.54387865,105350.0,105340.0,0.24692]
[1749036797534,1.54387865,105350.0,105340.0,0.4034]
[1749036797731,1.56154532,105350.0,105340.0,0.4034]
[1749036797964,1.54387865,105350.0,105340.0,0.4034]
[1749036798192,2.365319,105340.0,105330.0,0.20492]
[1749036798464,3.23355066,105340.0,105330.0,0.19756]
[1749036798681,2.83771998,105340.0,105330.0,0.19756]
[1749036798921,0.4676543,105340.0,105330.0,0.19756]
[1749036799121,0.86348498,105340.0,105330.0,0.19756]
[1749036799343,0.84708498,105340.0,105330.0,0.19756]
[1749036799566,0.86574977,105340.0,105330.0,0.19756]
[1749036799781,0.86575018,105340.0,105330.0,0.19756]
[1749036800001,0.86574989,105340.0,105330.0,0.19756]
[1749036800220,0.84808498,105340.0,105330.0,0.19756]
[1749036800661,0.8657497,105340.0,105330.0,0.19756]
[1749036800886,0.0968543,105340.0,105330.0,0.23036]
[1749036801118,0.49268498,105340.0,105330.0,0.23036]
[1749036801341,0.83268498,105340.0,105330.0,0.23036]
[1749036801569,0.49268498,105340.0,105330.0,0.23036]
[1749036802008,0.83268498,105340.0,105330.0,0.23036]
[1749036802456,0.4368543,105340.0,105330.0,0.23036]
[1749036802672,0.83268498,105340.0,105330.0,0.23036]
[1749036804194,0.83268498,105340.0,105330.0,0.43528]
[1749036806020,0.83268498,105340.0,105330.0,0.2788]
[1749036806232,0.83268498,105340.0,105330.0,0.43532]
[1749036806786,0.83268498,105340.0,105330.0,0.246]
[1749036807224,0.83268498,105340.0,105330.0,0.20492]
[1749036807460,0.83268498,105340.0,105330.0,0.246]
[1749036807904,0.4368543,105340.0,105330.0,0.40248]
[1749036808126,0.83268498,105340.0,105330.0,0.40248]
[1749036808792,0.4368543,105340.0,105330.0,0.40248]
[1749036809003,0.83268498,105340.0,105330.0,0.40248]
[1749036809655,0.001,105340.0,105330.0,0.40248]
[1749036809894,0.001,105340.0,105330.0,0.43528]
[1749036813167,0.001,105340.0,105330.0,0.2788]
[1749036813388,0.001,105340.0,105330.0,0.43528]
[1749036814640,0.001,105340.0,105330.0,0.23772]
[1749036814846,0.001,105340.0,105330.0,0.43528]
[1749036815310,0.84768498,105340.0,105330.0,0.246]
[1749036815528,0.86378498,105340.0,105330.0,0.40248]
[1749036815750,0.88951822,105340.0,105330.0,0.20492]
[1749036815972,0.88951822,105340.0,105330.0,0.40248]
[1749036815973,0.86378498,105340.0,105330.0,0.40248]
[1749036816657,0.88145083,105340.0,105330.0,0.40248]
[1749036816864,0.86378498,105340.0,105330.0,0.40248]
[1749036818888,0.83268498,105340.0,105330.0,0.40248]
[1749036820475,0.73683068,105340.0,105330.0,0.40248]
[1749036820692,0.73683068,105340.0,105330.0,0.43428]
[1749036820693,0.341,105340.0,105330.0,0.43428]
[1749036821841,0.341,105340.0,105330.0,0.73428]
[1749036822059,0.341,105340.0,105330.0,0.43428]
[1749036824719,0.73683068,105340.0,105330.0,0.41778]
[1749036824938,0.73683068,105340.0,105330.0,0.40248]
[1749036825161,0.75303068,105340.0,105330.0,0.40248]
[1749036825390,0.75303068,105340.0,105330.0,0.20492]
[1749036825604,0.75303068,105340.0,105330.0,0.40248]
[1749036825814,0.3572,105340.0,105330.0,0.40248]
[1749036826034,0.75303068,105340.0,105330.0,0.40248]
[1749036826252,0.84888498,105340.0,105330.0,0.20492]
[1749036826728,0.84888498,105340.0,105330.0,0.40248]
[1749036826948,0.4368543,105340.0,105330.0,0.40248]
[1749036827160,0.341,105340.0,105330.0,0.40248]
[1749036828724,0.4521543,105340.0,105330.0,0.20492]
[1749036828976,0.86398498,105340.0,105330.0,0.40248]
[1749036829638,0.4681543,105340.0,105330.0,0.40248]
[1749036829862,0.86398498,105340.0,105330.0,0.20492]
[1749036830071,0.86398498,105340.0,105330.0,0.246]
[1749036830289,0.86398498,105340.0,105330.0,0.40272]
[1749036830500,0.86398498,105340.0,105330.0,0.20492]
[1749036830618,0.86398498,105340.0,105330.0,0.40272]
[1749036831308,0.86298498,105340.0,105330.0,0.40272]
[1749036831559,0.86298498,105340.0,105330.0,0.40472]
[1749036831560,0.86398498,105340.0,105330.0,0.40472]
[1749036831774,0.86298498,105340.0,105330.0,0.40368]
[1749036832192,0.86298498,105340.0,105330.0,0.40468]
[1749036832193,0.86398498,105340.0,105330.0,0.40468]
[1749036832394,0.86398498,105340.0,105330.0,0.249]
[1749036832600,0.86398498,105340.0,105330.0,0.40564]
[1749036832804,0.86298498,105340.0,105330.0,0.40264]
[1749036833223,0.86498498,105340.0,105330.0,0.40264]
[1749036833836,0.86498498,105340.0,105330.0,0.4026]
[1749036835663,0.86498498,105340.0,105330.0,0.40256]
[1749036838022,0.86498498,105340.0,105330.0,0.40268]
[1749036840741,0.86498498,105340.0,105330.0,0.40264]
[1749036841181,0.4691543,105340.0,105330.0,0.40264]
[1749036841411,0.86498498,105340.0,105330.0,0.40264]
[1749036842046,0.86498498,105340.0,105330.0,0.246]
[1749036842258,0.86498498,105340.0,105330.0,0.40268]
[1749036850707,1.57660068,105340.0,105330.0,0.20492]
[1749036850968,1.56570582,105340.0,105330.0,0.4032]
[1749036851196,0.77404446,105340.0,105330.0,0.4032]
[1749036851441,0.34,105330.0,105310.0,0.02088421]
[1749036851704,0.34,105330.0,105270.0,0.01505]
[1749036851705,5.39,105280.0,105270.0,0.01505]
[1749036851958,1.181994,105260.0,105250.0,0.00168]
[1749036852171,2.02365536,105260.0,105250.0,0.2088]
[1749036852393,0.77093434,105260.0,105250.0,0.00181706]
[1749036852618,0.57404634,105260.0,105250.0,0.20889706]
[1749036852843,0.52404634,105260.0,105250.0,0.20889706]
[1749036853070,0.88720056,105260.0,105250.0,0.20889706]
[1749036853325,0.86377304,105260.0,105250.0,0.00181706]
[1749036853568,0.90952101,105260.0,105250.0,0.20897706]
[1749036853796,0.89186231,105260.0,105250.0,0.20893706]
[1749036854018,0.90952045,105260.0,105250.0,0.20893706]
[1749036854242,0.49694357,105260.0,105250.0,0.00281706]
[1749036854464,0.90331788,105260.0,105250.0,0.21089706]
[1749036854694,0.9209758,105260.0,105250.0,0.21089706]
[1749036854913,0.90331788,105260.0,105250.0,0.21089706]
[1749036855142,0.92097585,105260.0,105250.0,0.21089706]
[1749036855364,0.92097415,105260.0,105250.0,0.21077706]
[1749036855576,0.92097415,105260.0,105250.0,0.00381706]
[1749036855791,0.90331788,105260.0,105250.0,0.21077706]
[1749036856253,0.52404656,105260.0,105250.0,0.21077706]
[1749036856477,0.50639914,105260.0,105250.0,0.00381706]
[1749036856715,0.90331788,105260.0,105250.0,0.21069706]
[1749036856937,0.50639914,105260.0,105250.0,0.21069706]
[1749036857185,0.50639914,105260.0,105250.0,0.22554022]
[1749036857186,0.90331788,105260.0,105250.0,0.22554022]
[1749036857407,0.50639914,105260.0,105250.0,0.22550022]
[1749036857634,0.49139914,105260.0,105250.0,0.22550022]
[1749036857855,0.88831788,105260.0,105250.0,0.22550022]
[1749036858068,0.90381788,105260.0,105250.0,0.06326022]
[1749036858316,0.90381788,105260.0,105250.0,0.01866022]
[1749036858495,0.90381788,105260.0,105250.0,0.22542022]
[1749036858992,0.50689914,105260.0,105250.0,0.01866022]
[1749036859203,0.90381788,105260.0,105250.0,0.22534022]
[1749036859651,0.90381788,105260.0,105250.0,0.22530022]
[1749036860156,0.90381788,105260.0,105250.0,0.00381706]
[1749036860369,0.90381788,105260.0,105250.0,0.21045706]
[1749036860594,0.50689914,105260.0,105250.0,0.21041706]
[1749036860819,0.90381788,105260.0,105250.0,0.21041706]
[1749036861067,0.90381788,105260.0,105250.0,0.25341706]
[1749036861293,1.39111841,105260.0,105250.0,0.25341706]
[1749036861514,3.05037467,105260.0,105250.0,0.00381706]
[1749036861726,3.05037467,105260.0,105250.0,0.41545706]
[1749036862159,3.06801946,105260.0,105250.0,0.41545706]
[1749036862397,3.06801946,105260.0,105250.0,0.41541706]
[1749036862398,3.05037467,105260.0,105250.0,0.41541706]
[1749036862631,3.27037467,105260.0,105250.0,0.41541706]
[1749036862842,3.27037467,105260.0,105250.0,0.41537706]
[1749036863292,3.33612861,105260.0,105250.0,0.20881706]
[1749036863571,4.143263,105240.0,105230.0,0.00473617]
[1749036863796,4.143263,105240.0,105210.0,0.0159097]
[1749036863797,0.3718,105230.0,105210.0,0.0159097]
[1749036864023,0.4676543,105220.0,105210.0,0.0159097]
[1749036864246,0.86457304,105220.0,105210.0,0.26559781]
[1749036864697,0.89503783,105220.0,105210.0,0.22099781]
[1749036864932,0.89503783,105220.0,105210.0,0.26559781]
[1749036865154,0.98454161,105220.0,105210.0,0.22099781]
[1749036865346,0.98454161,105220.0,105210.0,0.42747781]
[1749036865608,0.89503783,105220.0,105210.0,0.21855781]
[1749036865841,0.9126768,105220.0,105210.0,0.42507781]
[1749036866070,0.89503783,105220.0,105210.0,0.42507781]
[1749036866257,0.89503783,105220.0,105210.0,0.21855781]
[1749036866502,0.89503783,105220.0,105210.0,0.42603781]
[1749036866503,0.91367692,105220.0,105210.0,0.42603781]
[1749036866722,0.98854905,105220.0,105210.0,0.24968]
[1749036866933,3.14697705,105220.0,105210.0,0.20508]
[1749036867168,0.3715,105210.0,105200.0,0.01004]
[1749036867400,1.16533748,105200.0,105190.0,8e-05]
[1749036867607,1.26119178,105200.0,105190.0,0.00012816]
[1749036867822,1.30619742,105200.0,105190.0,0.00012816]
[1749036868057,0.90927868,105200.0,105190.0,0.16208816]
[1749036868302,0.90927868,105200.0,105190.0,0.00012816]
[1749036868524,0.90927868,105200.0,105190.0,0.16204816]
[1749036868786,0.93816065,105200.0,105190.0,0.16304816]
[1749036869029,0.93816065,105200.0,105190.0,0.16204816]
[1749036869290,0.46573627,105200.0,105190.0,0.16304816]
[1749036869523,0.46573627,105200.0,105190.0,0.16308816]
[1749036869752,0.51074191,105200.0,105190.0,0.16304816]
[1749036870033,0.51074191,105200.0,105190.0,0.16300816]
[1749036870275,0.51174191,105200.0,105190.0,0.16300816]
[1749036871420,0.51915315,105200.0,105190.0,0.16300816]
[1749036871651,0.01454085,105180.0,105170.0,0.00054876]
[1749036871867,0.01454085,105180.0,105170.0,0.04793752]
[1749036872089,0.01454085,105180.0,105170.0,0.44485626]
[1749036872774,0.01454085,105180.0,105170.0,0.43000476]
[1749036873007,0.01654085,105180.0,105170.0,0.59380476]
[1749036873236,0.01654085,105180.0,105170.0,0.43200476]
[1749036873466,0.01654085,105180.0,105170.0,0.59372476]
[1749036873924,0.002,105180.0,105170.0,0.59372476]
[1749036874141,0.002,105180.0,105170.0,0.84352476]
[1749036874819,0.002,105180.0,105170.0,0.93929906]
[1749036875313,0.002,105180.0,105170.0,0.54238032]
[1749036875556,0.002,105180.0,105170.0,0.93929906]
[1749036875784,0.002,105180.0,105170.0,0.95414949]
[1749036876233,0.07594096,105210.0,105170.0,0.95414949]
[1749036876457,0.07594096,105210.0,105190.0,0.42881874]
[1749036876715,0.09048181,105210.0,105200.0,0.20716]
[1749036878101,0.01454085,105210.0,105200.0,0.60407874]
[1749036878317,0.01554085,105210.0,105200.0,0.20716]
[1749036878759,0.01454085,105200.0,105180.0,0.01484853]
[1749036878977,0.35454085,105200.0,105190.0,0.20736]
[1749036879408,0.45039515,105200.0,105190.0,0.04464]
[1749036879635,0.46639515,105200.0,105190.0,0.04464]
[1749036879856,0.46639515,105200.0,105190.0,0.20748]
[1749036880072,0.46739515,105200.0,105190.0,0.20748]
[1749036880521,0.49690661,105200.0,105190.0,0.20748]
[1749036880735,0.52088237,105200.0,105180.0,0.02284853]
[1749036880942,0.53708237,105200.0,105190.0,0.20748]
[1749036881161,0.05248722,105190.0,105180.0,0.01884853]
[1749036881400,0.06702807,105190.0,105180.0,0.06348853]
[1749036881645,0.02851146,105190.0,105180.0,0.06356853]
[1749036882295,0.02851146,105190.0,105180.0,0.22232853]
[1749036882517,0.02651146,105190.0,105180.0,0.22224853]
[1749036882772,0.02751146,105190.0,105180.0,0.22628853]
[1749036883641,0.02751146,105190.0,105180.0,0.22828853]
[1749036883859,0.47973994,105190.0,105180.0,0.22824853]
[1749036884973,0.341,105190.0,105180.0,0.22824853]
[1749036885193,0.341,105190.0,105180.0,0.2134]
[1749036886087,0.35554085,105190.0,105180.0,0.21328]
[1749036886541,0.341,105190.0,105180.0,0.05072]
[1749036886765,0.341,105190.0,105180.0,0.006]
[1749036886964,0.341,105190.0,105180.0,0.21344]
[1749036887233,0.36934479,105190.0,105180.0,0.21344]
[1749036887446,0.341,105190.0,105180.0,0.21344]
[1749036887889,0.341,105190.0,105180.0,0.006]
[1749036888144,0.341,105190.0,105180.0,0.2158566]
[1749036888354,0.341,105190.0,105180.0,0.21348]
[1749036891462,0.001,105190.0,105180.0,0.62609874]
[1749036891727,0.001,105190.0,105180.0,0.2134]
[1749036892217,0.001,105190.0,105180.0,0.006]
[1749036892433,0.21813611,105190.0,105180.0,0.20736]
[1749036892652,0.07694096,105190.0,105180.0,0.20736]
[1749036892888,0.07694096,105190.0,105180.0,0.20744]
[1749036893325,0.10528575,105190.0,105180.0,0.20744]
[1749036893549,0.10528575,105190.0,105180.0,0.20736]
[1749036893779,0.44528575,105190.0,105170.0,0.20584602]
[1749036893993,0.10528575,105190.0,105180.0,0.20736]
[1749036894869,0.07694096,105190.0,105180.0,0.20736]
[1749036895090,0.10528575,105190.0,105180.0,0.20736]
[1749036895301,0.02934479,105190.0,105180.0,0.20736]
[1749036895530,0.03034479,105190.0,105180.0,0.20736]
[1749036895758,0.002,105190.0,105180.0,0.20736]
[1749036896482,0.001,105190.0,105180.0,0.20736]
[1749036897689,0.002,105190.0,105180.0,0.20936]
[1749036899810,0.002,105190.0,105180.0,0.24126]
[1749036902513,0.002,105190.0,105180.0,0.73289304]
[1749036903467,0.002,105190.0,105180.0,0.0978543]
[1749036903695,0.002,105190.0,105180.0,0.20868]
[1749036903916,0.002,105190.0,105180.0,0.002]
[1749036904145,0.002,105190.0,105180.0,0.20872]
[1749036904146,0.22083611,105190.0,105180.0,0.20872]
[1749036906052,0.27298999,105190.0,105180.0,0.20868]
[1749036906517,0.64609964,105190.0,105180.0,0.04672]
[1749036906706,0.64609964,105190.0,105180.0,0.20864]
[1749036907203,0.2491809,105190.0,105180.0,0.04672]
[1749036907424,0.2491809,105190.0,105180.0,0.20864]
[1749036908599,0.2491809,105190.0,105180.0,0.20856]
[1749036908828,0.2491809,105190.0,105180.0,0.002]
[1749036909037,0.2491809,105190.0,105180.0,0.20852]
[1749036909499,0.22083611,105190.0,105180.0,0.20852]
[1749036909964,0.2491809,105190.0,105180.0,0.20852]
[1749036910323,0.17323994,105190.0,105180.0,0.20852]
[1749036910764,0.14489515,105190.0,105180.0,0.20852]
[1749036911944,0.14489515,105190.0,105180.0,0.04672]
[1749036912160,0.14489515,105190.0,105180.0,0.20836]
[1749036913299,0.14489515,105190.0,105180.0,0.04672]
[1749036913548,0.14489515,105190.0,105180.0,0.20828]
[1749036915359,0.14489515,105190.0,105180.0,0.002]
[1749036915576,0.14489515,105190.0,105180.0,0.20748]
[1749036916268,0.44595959,105190.0,105180.0,0.002]
[1749036916483,0.78595959,105190.0,105180.0,0.04608]
[1749036916709,0.78595959,105190.0,105180.0,0.20752]
[1749036917143,0.78595959,105190.0,105180.0,0.20756]
[1749036917374,0.91015868,105190.0,105180.0,0.20756]
[1749036917588,0.91015868,105190.0,105180.0,0.20752]
[1749036917792,0.90815868,105190.0,105180.0,0.20552]
[1749036918008,0.90915868,105190.0,105180.0,0.20552]
[1749036918223,0.90915868,105190.0,105180.0,0.20752]
[1749036918659,0.88481389,105190.0,105180.0,0.20752]
[1749036918871,0.91315868,105190.0,105180.0,0.002]
[1749036919076,0.91315868,105190.0,105180.0,0.20752]
[1749036919737,0.81630438,105190.0,105180.0,0.20552]
[1749036919998,0.91515868,105190.0,105180.0,0.20552]
[1749036920253,0.38554085,105180.0,105170.0,0.20584602]
[1749036920464,0.81326108,105180.0,105170.0,0.41164602]
[1749036920678,0.41634234,105180.0,105170.0,0.41164602]
[1749036920968,0.48139515,105180.0,105170.0,0.41164602]
[1749036921385,0.48239515,105180.0,105170.0,0.41164602]
[1749036921599,0.48939515,105180.0,105170.0,0.41164602]
[1749036922029,0.48239515,105180.0,105170.0,0.41160602]
[1749036922294,0.45639515,105180.0,105170.0,0.41160602]
[1749036922516,0.45139515,105180.0,105170.0,0.41160602]
[1749036922727,0.45039515,105180.0,105170.0,0.41160602]
[1749036922941,0.45439515,105180.0,105170.0,0.41172602]
[1749036923153,0.45839515,105180.0,105170.0,0.41172602]
[1749036923596,0.45439515,105180.0,105170.0,0.41172602]
[1749036923814,0.45639515,105180.0,105170.0,0.41172602]
[1749036926509,0.88451389,105180.0,105170.0,0.41160602]
[1749036926722,0.88451389,105180.0,105170.0,0.41156602]
[1749036926949,0.48759515,105180.0,105170.0,0.41156602]
[1749036927177,0.47209515,105180.0,105170.0,0.41156602]
[1749036927682,0.45639515,105180.0,105170.0,0.41156602]
[1749036928331,0.4418543,105180.0,105170.0,0.41156602]
[1749036931369,0.48759515,105180.0,105170.0,0.20584602]
[1749036931594,0.88451389,105180.0,105170.0,0.41200602]
[1749036931808,0.88451389,105180.0,105170.0,0.20584602]
[1749036932012,0.88451389,105180.0,105170.0,0.41200602]
[1749036932430,0.48759515,105180.0,105170.0,0.41200602]
[1749036933062,0.48759515,105180.0,105170.0,0.41188602]
[1749036933373,0.48759515,105180.0,105170.0,0.41120602]
[1749036933591,0.45639515,105180.0,105170.0,0.20516602]
[1749036933832,0.4418543,105180.0,105170.0,0.41120602]
[1749036934733,0.006,105180.0,105170.0,0.44290602]
[1749036934974,0.006,105180.0,105170.0,0.83982476]
[1749036935222,0.006,105180.0,105170.0,0.53876032]
[1749036935463,0.006,105180.0,105170.0,1.27567906]
[1749036935705,0.006,105180.0,105170.0,1.27667906]
[1749036935924,0.006,105180.0,105170.0,1.30686393]
[1749036936174,0.004,105180.0,105170.0,1.30686393]
[1749036936598,0.004,105180.0,105170.0,1.07251906]
[1749036936599,0.005,105180.0,105170.0,1.07251906]
[1749036937109,0.004,105180.0,105170.0,1.07151906]
[1749036937349,0.005,105180.0,105170.0,1.07943906]
[1749036937592,0.07594096,105210.0,105200.0,0.0131]
[1749036937836,0.07594096,105210.0,105200.0,0.66787304]
[1749036938756,0.07594096,105230.0,105210.0,0.0315]
[1749036938985,0.07594096,105230.0,105220.0,0.16461561]
[1749036940138,0.07594096,105230.0,105220.0,0.16466377]
[1749036941080,0.07594096,105230.0,105220.0,0.00242377]
[1749036941561,0.07594096,105230.0,105220.0,0.16208816]
[1749036942467,0.07694096,105230.0,105220.0,0.16208816]
[1749036942694,0.07594096,105230.0,105220.0,0.16208816]
[1749036942903,0.07794096,105230.0,105220.0,0.16308816]
[1749036944041,0.07794096,105230.0,105220.0,0.41248816]
[1749036944508,0.08194096,105230.0,105220.0,0.41348816]
[1749036945214,0.006,105230.0,105220.0,0.41348816]
[1749036945438,0.846,105230.0,105220.0,0.41348816]
[1749036945687,1.346,105230.0,105220.0,0.41348816]
[1749036945905,1.006,105230.0,105220.0,0.41348816]
[1749036946151,1.006,105230.0,105220.0,0.41312816]
[1749036948032,1.006,105230.0,105220.0,0.20716816]
[1749036948263,1.006,105230.0,105220.0,0.41296816]
[1749036951009,1.0213,105230.0,105220.0,0.41296816]
[1749036951470,1.006,105230.0,105220.0,0.41296816]
[1749036953627,1.006,105230.0,105220.0,0.93713381]
[1749036953866,1.006,105230.0,105220.0,0.77557381]
[1749036954081,1.006,105230.0,105220.0,0.93681381]
[1749036954556,1.006,105230.0,105220.0,0.93581381]
[1749036954778,1.002,105230.0,105220.0,0.93581381]
[1749036955013,1.0,105230.0,105220.0,0.93481381]
[1749036955478,1.001,105230.0,105220.0,0.93481381]
[1749036955705,1.0,105230.0,105220.0,0.93481381]
[1749036956156,1.003,105230.0,105220.0,0.93581381]
[1749036956606,1.001,105230.0,105220.0,0.93781381]
[1749036956846,1.001,105230.0,105220.0,1.32881381]
[1749036957297,1.001,105230.0,105220.0,0.33632246]
[1749036957533,1.001,105230.0,105220.0,0.54200246]
[1749036957748,1.001,105230.0,105220.0,0.94200246]
[1749036957988,1.001,105230.0,105220.0,0.54200246]
[1749036958229,1.001,105230.0,105220.0,0.93874026]
[1749036958912,1.001,105230.0,105220.0,0.78362026]
[1749036959365,1.001,105230.0,105220.0,1.07938026]
[1749036959648,1.001,105230.0,105220.0,1.12938026]
[1749036959903,1.001,105230.0,105220.0,1.14392111]
[1749036960347,1.001,105230.0,105220.0,1.1719751]
[1749036961524,1.001,105230.0,105220.0,1.4719751]
[1749036961763,1.001,105230.0,105220.0,1.50215997]
[1749036961764,0.98987816,105230.0,105220.0,1.50215997]
[1749036961995,0.98987816,105230.0,105220.0,1.90215997]
[1749036962219,0.98887816,105230.0,105220.0,1.89915997]
[1749036962445,0.95667816,105230.0,105220.0,1.86685997]
[1749036962686,0.95867816,105230.0,105220.0,1.88095997]
[1749036963132,0.95767816,105230.0,105220.0,1.87695997]
[1749036963376,0.95767816,105230.0,105220.0,1.87995997]
[1749036963603,0.40712929,105230.0,105220.0,2.6466829]
[1749036963832,0.40712929,105230.0,105220.0,2.6966829]
[1749036964067,0.40330583,105230.0,105220.0,2.7786829]
[1749036964294,0.38993139,105230.0,105220.0,2.9279929]
[1749036964515,0.38993139,105230.0,105220.0,2.8459929]
[1749036965459,0.38993139,105230.0,105220.0,2.3492551]
[1749036965710,0.38993139,105230.0,105220.0,2.2453751]
[1749036965985,0.38333139,105230.0,105220.0,2.5978729]
[1749036966726,0.38333139,105230.0,105220.0,2.2011351]
[1749036966948,0.38333139,105230.0,105220.0,2.5978729]
[1749036967169,0.37673139,105230.0,105220.0,2.5978729]
[1749036968773,0.37673139,105230.0,105220.0,2.2011351]
[1749036969670,0.36960894,105230.0,105220.0,2.2011351]
[1749036970383,0.35346899,105230.0,105220.0,2.5978729]
[1749036970833,0.35346899,105230.0,105220.0,2.2011351]
[1749036971080,0.35346899,105230.0,105220.0,2.2010151]
[1749036971529,0.35346899,105230.0,105220.0,1.6895351]
[1749036971760,0.35346899,105230.0,105220.0,1.8511751]
[1749036973110,0.35346899,105230.0,105220.0,1.6895351]
[1749036973337,0.35346899,105230.0,105220.0,1.8512551]
[1749036974252,0.35346899,105230.0,105220.0,1.6297673]
[1749036974483,0.35346899,105230.0,105220.0,2.2323851]
[1749036974972,0.35346899,105230.0,105220.0,1.9945051]
[1749036975194,0.35346899,105230.0,105220.0,2.2004651]
[1749036975411,0.35346899,105230.0,105220.0,1.9954651]
[1749036977464,0.35346899,105230.0,105220.0,1.95126145]
[1749036978130,0.35346899,105230.0,105220.0,1.95110145]
[1749036978353,0.35346899,105230.0,105220.0,1.5544473]
[1749036978573,0.35346899,105230.0,105220.0,1.89876145]
[1749036979058,0.35346899,105230.0,105220.0,1.94876145]
[1749036980357,0.35346899,105230.0,105220.0,1.87897632]
[1749036980598,0.3584475,105230.0,105220.0,0.98715145]
[1749036980820,0.3748475,105230.0,105220.0,1.09863145]
[1749036981038,0.3748475,105230.0,105220.0,1.33715145]
[1749036981263,0.3748475,105230.0,105220.0,1.54859145]
[1749036981486,0.3748475,105230.0,105220.0,1.38715145]
[1749036981702,0.3748475,105230.0,105220.0,1.54867145]
[1749036982883,0.3748475,105230.0,105220.0,1.49855145]
[1749036983306,0.3748475,105230.0,105220.0,1.38715145]
[1749036983533,0.3748475,105230.0,105220.0,1.1018973]
[1749036983766,0.3748475,105230.0,105220.0,1.54855145]
[1749036984224,0.3423475,105230.0,105220.0,1.79667145]
[1749036984902,0.3423475,105230.0,105220.0,1.82685632]
[1749036985608,0.3423475,105230.0,105220.0,1.82673632]
[1749036987348,0.3423475,105230.0,105220.0,1.62173632]
[1749036988022,0.3577475,105230.0,105220.0,1.62173632]
[1749036988976,0.3423475,105230.0,105220.0,1.57761632]
[1749036989209,0.3423475,105230.0,105220.0,1.94740145]
[1749036989689,0.3423475,105230.0,105220.0,1.98522603]
[1749036989894,0.3423475,105230.0,105220.0,1.94740145]
[1749036990104,0.3423475,105230.0,105220.0,1.94736145]
[1749036990568,0.3423475,105230.0,105220.0,1.98518603]
[1749036990569,0.33122538,105230.0,105220.0,1.98518603]
[1749036990789,0.33122538,105230.0,105220.0,1.94736145]
[1749036992522,0.31638538,105230.0,105220.0,1.6376495]
[1749036992736,0.31638538,105230.0,105220.0,1.2107073]
[1749036993001,0.31638538,105230.0,105220.0,1.6374895]
[1749036993221,0.34758538,105230.0,105220.0,1.4264095]
[1749036993432,0.34758538,105230.0,105220.0,0.74599645]
[1749036993852,0.34758538,105230.0,105220.0,1.1426506]
[1749036994079,0.34758538,105230.0,105220.0,1.7317706]
[1749036995978,0.34758538,105230.0,105220.0,1.5266506]
[1749036997975,0.34758538,105230.0,105220.0,1.4825306]
[1749036999321,0.34758538,105230.0,105220.0,1.4801306]
[1749037000213,0.34758538,105230.0,105220.0,1.3192106]
[1749037000430,0.34758538,105230.0,105220.0,1.4798106]
[1749037001101,0.34758538,105230.0,105220.0,1.08311645]
[1749037002218,0.34758538,105230.0,105220.0,0.13255645]
[1749037002438,0.34758538,105230.0,105220.0,0.29319645]
[1749037002650,0.34758538,105230.0,105220.0,0.26514246]
[1749037003013,0.34758538,105230.0,105220.0,0.10450246]
[1749037003213,0.74423953,105230.0,105220.0,0.10450246]
[1749037003650,0.74423953,105230.0,105220.0,0.26506246]
[1749037004057,0.74423953,105230.0,105220.0,0.51358246]
[1749037004662,0.34758538,105230.0,105220.0,0.51358246]
[1749037006400,0.34758538,105230.0,105220.0,0.35294246]
[1749037006604,0.74423953,105230.0,105220.0,0.51382246]
[1749037007641,0.74423953,105230.0,105220.0,0.51374246]
[1749037008423,0.74423953,105230.0,105220.0,0.35294246]
[1749037008626,0.74423953,105230.0,105220.0,0.51366246]
[1749037008827,0.74423953,105230.0,105220.0,0.30950246]
[1749037009037,0.74423953,105230.0,105220.0,0.51362246]
[1749037009604,0.74323953,105230.0,105220.0,0.50862246]
[1749037009810,0.74223953,105230.0,105220.0,0.50262246]
[1749037010008,0.74323953,105230.0,105220.0,0.50562246]
[1749037010286,0.74423953,105230.0,105220.0,0.51062246]
[1749037010714,0.74323953,105230.0,105220.0,0.50562246]
[1749037011449,0.74323953,105230.0,105220.0,0.50550246]
[1749037011667,0.74423953,105230.0,105220.0,0.50950246]
[1749037012113,0.74423953,105230.0,105220.0,0.50946246]
[1749037015391,0.74423953,105230.0,105220.0,0.50934246]
[1749037015849,0.74423953,105230.0,105220.0,0.25548]
[1749037016044,0.74423953,105230.0,105220.0,0.41592]
[1749037017660,0.34758538,105230.0,105220.0,0.41592]
[1749037020430,0.34758538,105230.0,105220.0,0.5117743]
[1749037028046,0.34758538,105230.0,105220.0,0.90842845]
[1749037028977,0.31638538,105230.0,105220.0,1.29325735]
[1749037029170,0.31638538,105230.0,105220.0,1.64325735]
[1749037031005,0.33278538,105230.0,105220.0,1.64325735]
[1749037031442,0.34818538,105230.0,105220.0,0.6478543]
[1749037031681,0.34818538,105230.0,105220.0,1.2512943]
[1749037032601,0.34818538,105230.0,105220.0,0.8512943]
[1749037033245,0.34818538,105230.0,105220.0,1.24794845]
[1749037035703,0.34818538,105230.0,105220.0,0.8510543]
[1749037037263,0.34773538,105230.0,105220.0,0.8510543]
[1749037042524,0.34773538,105230.0,105220.0,0.5110543]
[1749037043513,0.34773538,105230.0,105220.0,0.90770845]
[1749037044616,0.34773538,105230.0,105220.0,0.9222493]
[1749037044837,0.30109538,105230.0,105220.0,0.9722493]
[1749037045951,0.30109538,105230.0,105220.0,1.3122493]
[1749037046615,0.30109538,105230.0,105220.0,1.1572493]
[1749037046840,0.30109538,105230.0,105220.0,1.18753735]
[1749037047756,0.30109538,105230.0,105220.0,1.21541469]
[1749037047970,0.30109538,105230.0,105220.0,1.21481469]
[1749037048635,0.33189538,105230.0,105220.0,1.21481469]
[1749037048851,0.33189538,105230.0,105220.0,1.0288765]
[1749037049070,0.33189538,105230.0,105220.0,0.99858845]
[1749037049522,0.33189538,105230.0,105220.0,1.4288765]
[1749037050629,0.33189538,105230.0,105220.0,1.39850845]
[1749037051559,0.33089538,105230.0,105220.0,1.39850845]
[1749037051794,0.33089538,105230.0,105220.0,1.23950845]
[1749037052014,0.33089538,105230.0,105220.0,0.99842845]
[1749037052922,0.33089538,105230.0,105220.0,0.1028543]